fUSD/lending_fUSD_20250616
["ID","MTS","AMOUNT","RATE_DAILY","PERIOD"]
[366177058,1750098671256,-150.0,0.00016736,2]
[366177059,1750098671267,-150.0,0.00016736,2]
[366177060,1750098671276,-150.0,0.00016736,2]
[366177061,1750098671286,-150.0,0.0001674,2]
[366177062,1750098671297,-150.0,0.00016741,2]
[366177063,1750098671306,-150.0,0.00016744,2]
[366177064,1750098671317,-150.0,0.00016744,2]
[366177065,1750098671327,-150.0,0.00016751,2]
[366177066,1750098671337,-150.0,0.00016752,2]
[366177067,1750098671346,-150.0,0.00016756,2]
[366177068,1750098671357,-5560.30266166,0.00016758,2]
[366177069,1750098671402,-405.21997043,0.00016758,2]
[366177070,1750098671412,-150.0,0.0001676,2]
[366177071,1750098671423,-150.0,0.00016762,2]
[366177072,1750098671434,-831.18406056,0.00016762,2]
[366177073,1750098671445,-200.0,0.00016764,2]
[366177074,1750098671460,-150.0,0.00016764,2]
[366177075,1750098671470,-200.0,0.00016764,2]
[366177076,1750098671481,-200.0,0.00016764,2]
[366177077,1750098671491,-200.0,0.00016764,2]
[366177078,1750098671500,-150.0,0.00016765,2]
[366177079,1750098671511,-935.85933279,0.00016765,2]
[366177080,1750098671522,-1000.0,0.00016767,2]
[366177081,1750098671532,-1000.0,0.00016767,2]
[366177082,1750098671542,-1000.0,0.00016767,2]
[366177083,1750098671552,-1000.0,0.00016767,2]
[366177084,1750098671562,-1000.0,0.00016767,2]
[366177085,1750098671572,-1000.0,0.00016767,2]
[366177086,1750098671582,-1000.0,0.00016767,2]
[366177087,1750098671592,-1000.0,0.00016767,2]
[366177088,1750098671603,-1000.0,0.00016767,2]
[366177089,1750098671613,-1000.0,0.00016767,2]
[366177090,1750098671623,-376.12247534,0.00016767,2]
[366177091,1750098671635,-200.0,0.00016768,2]
[366177092,1750098671646,-200.0,0.00016773,2]
[366177093,1750098671656,-596.20237799,0.00016776,2]
[366177094,1750098671666,-150.0,0.00016777,2]
[366177095,1750098671675,-200.0,0.00016777,2]
[366177096,1750098671685,-200.0,0.00016777,2]
[366177097,1750098671696,-200.0,0.00016777,2]
[366177098,1750098671706,-381.24456467,0.00016778,2]
[366177099,1750098671716,-200.0,0.00016781,2]
[366177100,1750098671726,-150.0,0.00016781,2]
[366177101,1750098671737,-2821.74714364,0.00016782,2]
[366177102,1750098671747,-935.85933279,0.00016782,2]
[366177103,1750098671757,-2821.74714364,0.00016784,2]
[366177104,1750098671767,-2821.74714364,0.00016784,2]
[366177105,1750098671778,-376.12247534,0.00016785,2]
[366177106,1750098671788,-150.0,0.00016785,2]
[366177107,1750098671798,-303.804749,0.00016788,2]
[366177108,1750098671807,-376.12247534,0.00016789,2]
[366177109,1750098671818,-303.804749,0.0001679,2]
[366177110,1750098671828,-303.804749,0.0001679,2]
[366177111,1750098671839,-381.24456467,0.00016791,2]
[366177112,1750098671849,-935.85933279,0.00016794,2]
[366177113,1750098671859,-831.18406056,0.00016797,2]
[366177114,1750098671869,-150.0,0.000168,2]
[366177115,1750098671879,-972.0,0.000168,6]
[366177116,1750098671889,-200.0,0.00016801,2]
[366177117,1750098671899,-935.85933279,0.00016802,2]
[366177118,1750098671909,-150.0,0.00016803,2]
[366177119,1750098671919,-150.0,0.00016805,2]
[366177120,1750098671928,-800.0,0.00016808,2]
[366177121,1750098671937,-1716.42328617,0.00016808,2]
[366177122,1750098671947,-1716.42328617,0.00016809,2]
[366177123,1750098671958,-150.0,0.00016809,2]
[366177124,1750098671969,-935.85933279,0.0001681,2]
[366177125,1750098671980,-150.0,0.00016811,2]
[366177126,1750098671989,-1716.42328617,0.00016813,2]
[366177127,1750098671999,-200.0,0.00016814,2]
[366177128,1750098672010,-200.0,0.00016814,2]
[366177129,1750098672020,-1716.42328617,0.00016814,2]
[366177130,1750098672030,-935.85933279,0.00016814,2]
[366177131,1750098672041,-868.48676193,0.00016815,2]
[366177132,1750098672051,-200.0,0.00016816,2]
[366177133,1750098672062,-2821.74714364,0.00016819,2]
[366177134,1750098672071,-150.0,0.00016821,2]
[366177135,1750098672081,-214.64241721,0.00016823,2]
[366177136,1750098672091,-1716.42328617,0.00016825,2]
[366177137,1750098672103,-303.804749,0.00016827,2]
[366177138,1750098672113,-381.24456467,0.00016829,2]
[366177139,1750098672123,-831.18406056,0.00016831,2]
[366177140,1750098672132,-376.12247534,0.00016832,2]
[366177141,1750098672142,-200.0,0.00016832,2]
[366177142,1750098672152,-150.0,0.00016833,2]
[366177143,1750098672162,-303.804749,0.00016836,2]
[366177144,1750098672176,-200.0,0.00016836,2]
[366177145,1750098672187,-150.0,0.00016838,2]
[366177146,1750098672197,-303.804749,0.0001684,2]
[366177147,1750098672206,-150.0,0.00016842,2]
[366177148,1750098672217,-200.0,0.00016844,2]
[366177149,1750098672228,-376.12247534,0.00016844,2]
[366177150,1750098672237,-150.0,0.00016845,2]
[366177151,1750098672249,-150.0,0.00016846,2]
[366177152,1750098672260,-200.0,0.00016847,2]
[366177153,1750098672270,-150.0,0.00016849,2]
[366177154,1750098672281,-150.0,0.00016849,2]
[366177155,1750098672291,-2821.74714364,0.0001685,2]
[366177156,1750098672301,-150.0,0.00016852,2]
[366177157,1750098672311,-200.0,0.00016853,2]
[366177158,1750098672321,-200.0,0.00016853,2]
[366177159,1750098672331,-303.804749,0.00016854,2]
[366177160,1750098672341,-150.0,0.00016855,2]
[366177161,1750098672351,-381.24456467,0.00016856,2]
[366177162,1750098672361,-200.0,0.00016856,2]
[366177163,1750098672372,-935.85933279,0.00016857,2]
[366177164,1750098672383,-381.24456467,0.00016859,2]
[366177165,1750098672393,-200.0,0.00016859,2]
[366177166,1750098672404,-381.24456467,0.0001686,2]
[366177167,1750098672416,-200.0,0.0001686,2]
[366177168,1750098672427,-1716.42328617,0.0001686,2]
[366177169,1750098672437,-2821.74714364,0.00016862,2]
[366177170,1750098672456,-2000.0,0.00016863,2]
[366177171,1750098672469,-500.0,0.00016863,2]
[366177172,1750098672479,-150.0,0.00016863,2]
[366177173,1750098672489,-200.0,0.00016863,2]
[366177174,1750098672499,-200.0,0.00016863,2]
[366177175,1750098672510,-303.804749,0.00016865,2]
[366177176,1750098672520,-831.18406056,0.00016866,2]
[366177177,1750098672530,-150.0,0.00016868,2]
[366177178,1750098672540,-588.004764,0.0001687,2]
[366177179,1750098672550,-3963.81,0.0001687,2]
[366177180,1750098672560,-945.231299,0.0001687,2]
[366177181,1750098672570,-838.36,0.0001687,2]
[366177182,1750098672580,-582.22,0.0001687,2]
[366177183,1750098672887,-764.58,0.0001687,2]
[366177184,1750098672899,-699.39,0.0001687,2]
[366177185,1750098672909,-686.04,0.0001687,2]
[366177186,1750098672920,-490.0,0.0001687,2]
[366177187,1750098672931,-490.0,0.0001687,2]
[366177188,1750098672942,-395.4227757,0.0001687,2]
[366177189,1750098677588,-490.0,0.0001572,2]
[366177190,1750098677597,-228.9572243,0.0001687,2]
[366177191,1750098677607,-2231.27,0.0001687,2]
[366177192,1750098677617,-676.64,0.0001687,2]
[366177193,1750098677626,-3051.51,0.0001687,2]
[366177194,1750098677636,-915.71,0.0001687,2]
[366177195,1750098677647,-1225.86,0.0001687,2]
[366177196,1750098677657,-689.74,0.0001687,2]
[366177197,1750098677667,-1559.36,0.0001687,2]
[366177198,1750098677676,-1441.75,0.0001687,2]
[366177199,1750098677686,-490.0,0.0001687,2]
[366177200,1750098677695,-1047.31,0.0001687,2]
[366177201,1750098677705,-1339.48,0.0001687,2]
[366177202,1750098677714,-501.22,0.0001687,2]
[366177203,1750098677723,-1394.46,0.0001687,2]
[366177204,1750098677732,-5504.56,0.0001687,2]
[366177205,1750098677741,-1516.34,0.0001687,2]
[366177206,1750098677751,-811.17,0.0001687,2]
[366177207,1750098677760,-1573.67,0.0001687,2]
[366177208,1750098677769,-490.0,0.0001687,2]
[366177209,1750098677779,-2426.82,0.0001687,2]
[366177210,1750098677788,-676.01,0.0001687,2]
[366177211,1750098677798,-490.0,0.0001687,2]
[366177212,1750098677807,-490.0,0.0001687,2]
[366177213,1750098677817,-1355.42,0.0001687,2]
[366177214,1750098677827,-609.61,0.0001687,2]
[366177215,1750098677836,-490.0,0.00016871,2]
[366177216,1750098677845,-542.94,0.00016871,2]
[366177217,1750098677855,-513.94,0.00016871,2]
[366177218,1750098677864,-490.0,0.00016871,2]
[366177219,1750098677874,-490.0,0.00016871,2]
[366177220,1750098677884,-490.0,0.00016871,2]
[366177221,1750098677894,-490.0,0.00016871,2]
[366177222,1750098677904,-490.0,0.00016871,2]
[366177223,1750098677914,-490.0,0.00016871,2]
[366177224,1750098677924,-490.0,0.00016871,2]
[366177225,1750098677933,-504.07,0.00016871,2]
[366177226,1750098677943,-572.23,0.00016871,2]
[366177227,1750098677954,-770.81,0.00016871,2]
[366177228,1750098677964,-490.0,0.00016871,2]
[366177229,1750098677975,-490.0,0.00016871,2]
[366177230,1750098677984,-383.91121196,0.00016871,2]
[366177231,1750098677995,-490.0,0.00016871,2]
[366177232,1750098678086,-527.81,0.00016871,2]
[366177233,1750098678096,-769.0,0.00016871,2]
[366177234,1750098678107,-490.0,0.00016871,2]
[366177235,1750098678118,-634.35,0.00016871,2]
[366177236,1750098678127,-490.0,0.00016871,2]
[366177237,1750098678137,-545.32,0.00016871,2]
[366177238,1750098678147,-699.49,0.00016871,2]
[366177239,1750098678158,-497.07,0.00016871,2]
[366177240,1750098678167,-632.45,0.00016871,2]
[366177241,1750098678180,-715.3,0.00016871,2]
[366177242,1750098678190,-490.0,0.00016871,2]
[366177243,1750098678200,-490.0,0.00016871,2]
[366177244,1750098678210,-648.18,0.00016871,2]
[366177245,1750098678219,-490.0,0.00016871,2]
[366177246,1750098678229,-618.36,0.00016871,2]
[366177247,1750098678238,-744.35,0.00016871,2]
[366177248,1750098678250,-490.0,0.00016871,2]
[366177249,1750098678262,-542.25,0.00016871,2]
[366177250,1750098678272,-736.17,0.00016871,2]
[366177251,1750098678281,-523.68,0.00016871,2]
[366177252,1750098678291,-599.28,0.00016871,2]
[366177253,1750098678301,-1121.0,0.00016871,2]
[366177254,1750098678311,-490.0,0.00016871,2]
[366177255,1750098678321,-852.83,0.00016871,2]
[366177256,1750098678332,-2774.58,0.00016871,2]
[366177257,1750098678342,-626.17,0.00016871,2]
[366177258,1750098678352,-490.0,0.00016871,2]
[366177259,1750098678362,-1144.16,0.00016871,2]
[366177260,1750098678372,-490.0,0.00016871,2]
[366177261,1750098678382,-998.19,0.00016871,2]
[366177262,1750098678391,-695.95,0.00016871,2]
[366177263,1750098678400,-1974.44,0.00016871,2]
[366177264,1750098678410,-624.68,0.00016871,2]
[366177265,1750098678420,-1486.84,0.00016871,2]
[366177266,1750098678429,-555.41,0.00016871,2]
[366177267,1750098678439,-819.16,0.00016871,2]
[366177268,1750098678448,-1068.65,0.00016871,2]
[366177269,1750098678458,-1376.01,0.00016871,2]
[366177270,1750098678468,-573.32,0.00016871,2]
[366177271,1750098678478,-1439.22,0.00016871,2]
[366177272,1750098678488,-724.67,0.00016871,2]
[366177273,1750098678497,-490.0,0.00016871,2]
[366177274,1750098678507,-848.52,0.00016871,2]
[366177275,1750098678517,-2310.41,0.00016871,2]
[366177276,1750098678526,-490.0,0.00016871,2]
[366177277,1750098678535,-1030.25,0.00016871,2]
[366177278,1750098678545,-936.2,0.00016871,2]
[366177279,1750098678555,-1759.32,0.00016871,2]
[366177280,1750098678564,-607.31,0.00016871,2]
[366177281,1750098678573,-490.0,0.00016871,2]
[366177282,1750098678583,-938.19,0.00016871,2]
[366177283,1750098678593,-3778.94,0.00016871,2]
[366177284,1750098678603,-794.2,0.00016871,2]
[366177285,1750098678613,-745.42,0.00016871,2]
[366177286,1750098678622,-490.0,0.00016871,2]
[366177287,1750098678632,-4054.92,0.00016871,2]
[366177288,1750098678642,-1725.24,0.00016871,2]
[366177289,1750098678651,-616.98,0.00016871,2]
[366177290,1750098678662,-2884.12,0.00016871,2]
[366177291,1750098678671,-490.0,0.00016871,2]
[366177292,1750098678681,-1425.86,0.00016871,2]
[366177293,1750098678691,-759.69,0.00016871,2]
[366177294,1750098678700,-490.0,0.00016871,2]
[366177295,1750098678710,-490.0,0.00016871,2]
[366177296,1750098678720,-1424.5,0.00016871,2]
[366177297,1750098678730,-490.0,0.00016871,2]
[366177298,1750098678740,-641.57,0.00016871,2]
[366177299,1750098678749,-1187.81,0.00016871,2]
[366177300,1750098678759,-490.0,0.00016871,2]
[366177301,1750098678769,-1878.29,0.00016871,2]
[366177302,1750098678778,-490.0,0.00016871,2]
[366177303,1750098678788,-7.62735454,0.00016871,2]
[366177304,1750098678809,-645.93264546,0.00016871,2]
[366177305,1750098678821,-7208.85,0.00016871,2]
[366177306,1750098678830,-606.94,0.00016871,2]
[366177307,1750098678840,-490.0,0.00016871,2]
[366177308,1750098678849,-530.92,0.00016871,2]
[366177309,1750098678858,-2927.47,0.00016871,2]
[366177310,1750098678868,-14148.67,0.00016871,2]
[366177311,1750098678878,-528.18,0.00016871,2]
[366177312,1750098678888,-843.13,0.00016871,2]
[366177313,1750098678897,-883.16,0.00016871,2]
[366177314,1750098678908,-490.0,0.00016871,2]
[366177315,1750098678918,-2804.92,0.00016871,2]
[366177316,1750098678928,-490.0,0.00016871,2]
[366177317,1750098678937,-1330.79,0.00016871,2]
[366177318,1750098678947,-490.0,0.00016871,2]
[366177319,1750098678956,-7004.33,0.00016871,2]
[366177320,1750098678966,-1081.81,0.00016871,2]
[366177321,1750098678976,-490.0,0.00016871,2]
[366177322,1750098678986,-523.93,0.00016871,2]
[366177323,1750098678996,-1841.05,0.00016871,2]
[366177324,1750098679007,-681.5,0.00016871,2]
[366177325,1750098679017,-490.0,0.00016871,2]
[366177326,1750098679027,-490.0,0.00016871,2]
[366177327,1750098679037,-789.15,0.00016871,2]
[366177328,1750098679047,-490.0,0.00016871,2]
[366177329,1750098679058,-519.27,0.00016871,2]
[366177330,1750098679068,-1007.61,0.00016871,2]
[366177331,1750098679078,-490.0,0.00016871,2]
[366177332,1750098679090,-300.0,0.00016871,2]
[366177333,1750098679099,-490.0,0.00016872,2]
[366177334,1750098679110,-490.0,0.00016872,2]
[366177335,1750098679120,-176.00340288,0.00016872,2]
[366177336,1750098679130,-490.0,0.00016872,2]
[366177337,1750098679140,-490.0,0.00016872,2]
[366177338,1750098679150,-490.0,0.00016872,2]
[366177339,1750098679159,-490.0,0.00016872,2]
[366177340,1750098679169,-490.0,0.00016872,2]
[366177341,1750098679181,-798.02,0.00016872,2]
[366177342,1750098679191,-490.0,0.00016872,2]
[366177343,1750098679201,-490.0,0.00016872,2]
[366177344,1750098679212,-490.0,0.00016872,2]
[366177345,1750098679225,-490.0,0.00016872,2]
[366177346,1750098679235,-584.1,0.00016872,2]
[366177347,1750098679245,-490.0,0.00016872,2]
[366177348,1750098679258,-718.89,0.00016872,2]
[366177349,1750098679268,-490.0,0.00016872,2]
[366177350,1750098679279,-490.0,0.00016872,2]
[366177351,1750098679289,-490.0,0.00016872,2]
[366177352,1750098679298,-490.0,0.00016872,2]
[366177353,1750098679308,-490.0,0.00016872,2]
[366177354,1750098679318,-490.0,0.00016872,2]
[366177355,1750098679329,-739.59,0.00016872,2]
[366177356,1750098679338,-490.0,0.00016872,2]
[366177357,1750098679347,-526.79026841,0.00016872,2]
[366177358,1750098679358,-490.0,0.00016872,2]
[366177359,1750098679368,-490.0,0.00016872,2]
[366177360,1750098679378,-1280.25,0.00016872,2]
[366177361,1750098679387,-490.0,0.00016872,2]
[366177362,1750098679398,-820.81,0.00016872,2]
[366177363,1750098679408,-490.0,0.00016872,2]
[366177364,1750098679417,-555.86,0.00016872,2]
[366177365,1750098679428,-668.7,0.00016872,2]
[366177366,1750098679438,-1406.05,0.00016872,2]
[366177367,1750098679448,-490.0,0.00016872,2]
[366177368,1750098679458,-1043.21,0.00016872,2]
[366177369,1750098679468,-1037.82,0.00016872,2]
[366177370,1750098679479,-724.51,0.00016872,2]
[366177371,1750098679488,-1013.69,0.00016872,2]
[366177372,1750098679498,-678.41,0.00016872,2]
[366177373,1750098679508,-1081.8,0.00016872,2]
[366177374,1750098679518,-490.0,0.00016872,2]
[366177375,1750098679528,-490.0,0.00016872,2]
[366177376,1750098679538,-1003.63,0.00016872,2]
[366177377,1750098679548,-490.0,0.00016872,2]
[366177378,1750098679558,-1079.26,0.00016872,2]
[366177379,1750098679567,-501.08,0.00016872,2]
[366177380,1750098679577,-1095.95,0.00016872,2]
[366177381,1750098679587,-208.84,0.00016872,2]
[366177382,1750098679597,-541.61,0.00016872,2]
[366177383,1750098679608,-559.6,0.00016872,2]
[366177384,1750098679618,-326.2833395,0.00016872,2]
[366177385,1750098679628,-1037.53,0.00016872,2]
[366177386,1750098679639,-492.49,0.00016872,2]
[366177387,1750098679649,-637.89996367,0.00016872,2]
[366177388,1750098679659,-318.39237343,0.00016872,2]
[366177389,1750098679670,-500.51,0.00016872,2]
[366177390,1750098679679,-530.05,0.00016872,2]
[366177391,1750098679689,-917.02,0.00016872,2]
[366177392,1750098679699,-490.0,0.00016872,2]
[366177393,1750098679709,-490.0,0.00016872,2]
[366177394,1750098679718,-508.55,0.00016872,2]
[366177395,1750098679728,-490.0,0.00016872,2]
[366177396,1750098679737,-490.0,0.00016872,2]
[366177397,1750098679747,-604.78,0.00016872,2]
[366177398,1750098679756,-490.0,0.00016872,2]
[366177399,1750098679766,-490.0,0.00016872,2]
[366177400,1750098679776,-490.0,0.00016872,2]
[366177401,1750098679786,-490.0,0.00016872,2]
[366177402,1750098679795,-827.97,0.00016872,2]
[366177403,1750098679805,-490.0,0.00016872,2]
[366177404,1750098679814,-698.0,0.00016872,2]
[366177405,1750098679824,-602.34,0.00016872,2]
[366177406,1750098679833,-490.0,0.00016872,2]
[366177407,1750098679844,-2790.29,0.00016872,2]
[366177408,1750098679854,-490.0,0.00016872,2]
[366177409,1750098679865,-4084.56,0.00016872,2]
[366177410,1750098679875,-694.92,0.00016872,2]
[366177411,1750098679885,-565.22,0.00016872,2]
[366177412,1750098679895,-490.0,0.00016872,2]
[366177413,1750098679904,-1000.0,0.00016872,2]
[366177414,1750098679914,-490.0,0.00016872,2]
[366177415,1750098679924,-793.5,0.00016872,2]
[366177416,1750098679933,-747.23,0.00016872,2]
[366177417,1750098679943,-490.0,0.00016872,2]
[366177418,1750098679952,-583.84,0.00016872,2]
[366177419,1750098679962,-490.0,0.00016872,2]
[366177420,1750098679971,-833.28,0.00016872,2]
[366177421,1750098679980,-9086.97,0.00016872,2]
[366177422,1750098679990,-872.92,0.00016872,2]
[366177423,1750098680000,-529.95,0.00016872,2]
[366177424,1750098680010,-926.63,0.00016872,2]
[366177425,1750098680021,-651.68,0.00016872,2]
[366177426,1750098680031,-490.0,0.00016872,2]
[366177427,1750098680040,-490.0,0.00016872,2]
[366177428,1750098680050,-517.68,0.00016872,2]
[366177429,1750098680060,-578.65,0.00016872,2]
[366177430,1750098680070,-490.0,0.00016872,2]
[366177431,1750098680080,-3068.05,0.00016872,2]
[366177432,1750098680091,-490.0,0.00016872,2]
[366177433,1750098680102,-1458.01,0.00016872,2]
[366177434,1750098680112,-490.0,0.00016872,2]
[366177435,1750098680123,-787.53,0.00016872,2]
[366177436,1750098680134,-1077.12,0.00016872,2]
[366177437,1750098680144,-490.0,0.00016872,2]
[366177438,1750098680154,-490.0,0.00016872,2]
[366177439,1750098680164,-592.18,0.00016872,2]
[366177440,1750098680180,-490.0,0.00016872,2]
[366177441,1750098680191,-1003.24,0.00016872,2]
[366177442,1750098680201,-585.63,0.00016872,2]
[366177443,1750098680211,-8412.1,0.00016872,2]
[366177444,1750098680222,-490.0,0.00016872,2]
[366177445,1750098680232,-490.0,0.00016872,2]
[366177446,1750098680241,-539.86,0.00016872,2]
[366177447,1750098680253,-490.0,0.00016872,2]
[366177448,1750098680263,-783.13,0.00016872,2]
[366177449,1750098680272,-490.0,0.00016872,2]
[366177450,1750098680283,-1676.86,0.00016872,2]
[366177451,1750098680293,-490.0,0.00016872,2]
[366177452,1750098680303,-1197.55,0.00016872,2]
[366177453,1750098680313,-562.33,0.00016872,2]
[366177454,1750098680324,-937.33,0.00016872,2]
[366177455,1750098680334,-490.0,0.00016872,2]
[366177456,1750098680344,-1010.19,0.00016872,2]
[366177457,1750098680355,-741.83,0.00016872,2]
[366177458,1750098680364,-1316.94,0.00016872,2]
[366177459,1750098680374,-490.0,0.00016872,2]
[366177460,1750098680384,-717.02,0.00016872,2]
[366177461,1750098680394,-913.99,0.00016872,2]
[366177462,1750098680404,-490.0,0.00016872,2]
[366177463,1750098680415,-582.21,0.00016872,2]
[366177464,1750098680425,-1575.33,0.00016872,2]
[366177465,1750098680435,-549.24,0.00016872,2]
[366177466,1750098680445,-279.69172812,0.00016872,2]
[366177467,1750098680455,-490.0,0.00016872,2]
[366177468,1750098680465,-566.99,0.00016872,2]
[366177469,1750098680474,-980.41,0.00016872,2]
[366177470,1750098680484,-3319.43,0.00016872,2]
[366177471,1750098680493,-798.45,0.00016872,2]
[366177472,1750098680503,-490.0,0.00016872,2]
[366177473,1750098680514,-490.0,0.00016872,2]
[366177474,1750098680524,-1187.91,0.00016872,2]
[366177475,1750098680534,-490.0,0.00016872,2]
[366177476,1750098680544,-634.08,0.00016872,2]
[366177477,1750098680554,-613.79,0.00016872,2]
[366177478,1750098680564,-1059.56,0.00016872,2]
[366177479,1750098680574,-490.0,0.00016872,2]
[366177480,1750098680583,-775.89,0.00016872,2]
[366177481,1750098680592,-536.55,0.00016872,2]
[366177482,1750098680602,-2229.92,0.00016872,2]
[366177483,1750098680612,-3731.69,0.00016872,2]
[366177484,1750098680622,-793.2,0.00016872,2]
[366177485,1750098680632,-490.0,0.00016872,2]
[366177486,1750098680642,-490.0,0.00016872,2]
[366177487,1750098680652,-661.62,0.00016872,2]
[366177488,1750098680661,-490.0,0.00016872,2]
[366177489,1750098680671,-2078.71,0.00016872,2]
[366177490,1750098680683,-490.0,0.00016872,2]
[366177491,1750098680692,-541.96,0.00016872,2]
[366177492,1750098680702,-605.92,0.00016872,2]
[366177493,1750098680712,-490.0,0.00016872,2]
[366177494,1750098680722,-490.0,0.00016872,2]
[366177495,1750098680732,-609.81,0.00016872,2]
[366177496,1750098680742,-604.12,0.00016872,2]
[366177497,1750098680751,-490.0,0.00016872,2]
[366177498,1750098680761,-490.0,0.00016873,2]
[366177499,1750098680771,-150.0,0.00016873,2]
[366177500,1750098680780,-381.24456467,0.00016875,2]
[366177501,1750098680790,-200.0,0.00016877,2]
[366177502,1750098680800,-935.85933279,0.00016877,2]
[366177503,1750098680809,-150.0,0.00016877,2]
[366177504,1750098680819,-150.0,0.00016881,2]
[366177505,1750098680828,-376.12247534,0.00016882,2]
[366177506,1750098680838,-150.0,0.00016882,2]
[366177507,1750098680847,-150.0,0.00016884,2]
[366177508,1750098680857,-150.0,0.00016884,2]
[366177509,1750098680867,-150.0,0.00016886,2]
[366177510,1750098680877,-2821.74714364,0.00016887,2]
[366177511,1750098680887,-150.0,0.00016887,2]
[366177512,1750098680896,-442.14247197,0.00016888,2]
[366177513,1750098680906,-2821.74714364,0.0001689,2]
[366177514,1750098680915,-1716.42328617,0.00016891,2]
[366177515,1750098680926,-200.0,0.00016891,2]
[366177516,1750098680935,-1716.42328617,0.00016892,2]
[366177517,1750098680945,-150.0,0.00016894,2]
[366177518,1750098680954,-150.0,0.00016894,2]
[366177519,1750098680963,-381.24456467,0.00016896,2]
[366177520,1750098680973,-376.12247534,0.00016897,2]
[366177521,1750098680983,-150.0,0.00016897,2]
[366177522,1750098680992,-200.0,0.00016897,2]
[366177523,1750098681002,-376.12247534,0.00016899,2]
[366177524,1750098681011,-209.5,0.000169,2]
[366177525,1750098681021,-719.76229315,0.000169,2]
[366177526,1750098681031,-209.5,0.000169,2]
[366177527,1750098681041,-164.41468905,0.000169,2]
[366177528,1750098681051,-596.20237799,0.000169,2]
[366177529,1750098681061,-3833.13619249,0.000169,2]
[366177530,1750098681070,-831.18406056,0.000169,2]
[366177531,1750098681080,-5965.52263209,0.000169,2]
[366177532,1750098681089,-635.42038493,0.000169,2]
[366177533,1750098681099,-155.57963117,0.000169,2]
[366177534,1750098681110,-206.98137295,0.000169,2]
[366177535,1750098681120,-6865.54054368,0.000169,2]
[366177536,1750098681130,-461.3251112,0.000169,2]
[366177537,1750098681139,-150.0,0.00016909,2]
[366177538,1750098681150,-150.0,0.0001691,2]
[366177539,1750098681159,-150.0,0.0001691,2]
[366177540,1750098681171,-150.0,0.00016911,2]
[366177541,1750098681182,-416.07248595,0.00016912,2]
[366177542,1750098681193,-150.0,0.00016912,2]
[366177543,1750098681202,-150.0,0.00016912,2]
[366177544,1750098681212,-150.0,0.00016916,2]
[366177545,1750098681223,-150.0,0.0001692,2]
[366177546,1750098681233,-150.0,0.00016923,2]
[366177547,1750098681243,-150.0,0.00016926,2]
[366177548,1750098681254,-150.0,0.00016928,2]
[366177549,1750098681265,-150.0,0.0001693,2]
[366177550,1750098681275,-150.0,0.00016933,2]
[366177551,1750098681285,-4052.0,0.00016934,2]
[366177552,1750098681295,-150.0,0.00016936,2]
[366177553,1750098681305,-150.0,0.00016938,2]
[366177554,1750098681315,-150.0,0.00016938,2]
[366177555,1750098681324,-150.0,0.00016944,2]
[366177556,1750098681334,-150.0,0.00016945,2]
[366177557,1750098681344,-150.0,0.00016954,2]